bitfinex/quotes_BTCUSD_20230113
["timestamp","ask_amount","ask_price","bid_price","bid_amount"]
[1673601930456,0.71015094,18878.0,18877.0,0.128]
[1673601930710,0.55149495,18878.0,18877.0,0.128]
[1673601931220,0.00629751,18878.0,18877.0,0.128]
[1673601931470,0.00629751,18878.0,18877.0,0.457711]
[1673601931964,0.00629751,18878.0,18877.0,0.128]
[1673601933209,0.00629751,18878.0,18877.0,0.79750107]
[1673601933731,0.00629751,18878.0,18877.0,1.12721207]
[1673601935567,0.01245091,18880.0,18878.0,0.74817229]
[1673601935796,0.01245091,18880.0,18879.0,0.329711]
[1673601936800,0.01645091,18880.0,18879.0,0.329711]
[1673601937063,0.01645091,18880.0,18879.0,0.95207295]
[1673601937558,0.01645091,18880.0,18879.0,0.62236195]
[1673601937860,0.01245091,18880.0,18879.0,0.62236195]
[1673601938124,1.3250465,18880.0,18879.0,0.02]
[1673601938392,1.27339755,18880.0,18879.0,0.02]
[1673601938640,2.14901818,18880.0,18879.0,0.02]
[1673601938885,2.14901818,18880.0,18876.0,0.63713213]
[1673601939134,0.49648995,18879.0,18876.0,0.63713213]
[1673601939471,0.15859598,18878.0,18876.0,0.00096695]
[1673601939648,0.15859598,18878.0,18877.0,0.00064927]
[1673601939883,0.49648995,18879.0,18876.0,0.57608246]
[1673601941412,0.99936483,18879.0,18876.0,0.57608246]
[1673601941665,1.00336483,18879.0,18876.0,0.66908246]
[1673601941911,0.76547086,18879.0,18876.0,0.66908246]
[1673601943173,0.50687488,18879.0,18876.0,0.66908246]
[1673601943675,0.00130274,18878.0,18876.0,0.66908246]
[1673601943920,0.00130274,18878.0,18877.0,0.53422778]
[1673601944680,0.00130274,18878.0,18877.0,0.86393878]
[1673601944912,0.00130274,18878.0,18877.0,0.53422778]
[1673601945911,0.00130274,18878.0,18877.0,0.55422778]
[1673601946773,0.00130274,18878.0,18877.0,0.53422778]
[1673601947416,0.00130274,18878.0,18877.0,0.55422778]
[1673601947650,0.00130274,18878.0,18877.0,0.53422778]
[1673601947904,0.00530274,18878.0,18877.0,0.62722778]
[1673601948152,0.00130274,18878.0,18877.0,0.53422778]
[1673601948642,0.00530274,18878.0,18877.0,0.62722778]
[1673601951052,0.00530274,18878.0,18877.0,0.95693878]
[1673601951797,0.00530274,18878.0,18877.0,0.62722778]
[1673601952296,0.00530274,18878.0,18877.0,0.95693878]
[1673601954960,0.00518678,18878.0,18877.0,0.95693878]
[1673601956953,0.00518678,18878.0,18877.0,0.62722778]
[1673601957464,0.00518678,18878.0,18877.0,0.95693878]
[1673601957960,0.00518678,18878.0,18877.0,0.62722778]
[1673601958521,0.16378276,18878.0,18877.0,0.62722778]
[1673601958991,0.00518678,18878.0,18877.0,0.62722778]
[1673601959500,0.53550169,18878.0,18877.0,0.62722778]
[1673601959999,0.53550169,18878.0,18877.0,0.093]
[1673601960261,0.69409767,18878.0,18877.0,0.093]
[1673601960516,0.53550169,18878.0,18877.0,0.093]
[1673601960766,0.69409767,18878.0,18877.0,0.093]
[1673601960982,0.53550169,18878.0,18877.0,0.093]
[1673601962763,0.69409767,18878.0,18877.0,0.093]
[1673601963508,0.53550169,18878.0,18877.0,0.093]
[1673601964016,0.53561841,18878.0,18877.0,0.093]
[1673601967294,0.52856538,18878.0,18877.0,0.093]
[1673601967537,0.52856538,18878.0,18877.0,0.093663]
[1673601967538,0.68716136,18878.0,18877.0,0.093663]
[1673601967786,0.68716136,18878.0,18877.0,0.093]
[1673601968457,0.92505533,18878.0,18877.0,0.093]
[1673601969211,1.08377133,18878.0,18877.0,0.093]
[1673601969981,0.76645935,18878.0,18877.0,0.093]
[1673601970196,0.92520541,18878.0,18877.0,0.093]
[1673601970452,1.18377133,18878.0,18877.0,0.093]
[1673601972515,1.34251733,18878.0,18877.0,0.093]
[1673601973009,1.02520535,18878.0,18877.0,0.093]
[1673601973252,1.32520535,18878.0,18877.0,0.093]
[1673601973512,1.74216999,18878.0,18877.0,0.093]
[1673601973772,1.75066999,18878.0,18877.0,0.093]
[1673601975728,1.97825005,18878.0,18877.0,0.093]
[1673601975980,2.44591415,18878.0,18877.0,0.093]
[1673601976221,2.44591415,18878.0,18874.0,0.0115529]
[1673601976222,0.3183,18876.0,18874.0,0.0115529]
[1673601976465,1.66752427,18875.0,18874.0,0.0115529]
[1673601976716,1.42959638,18875.0,18874.0,0.01059939]
[1673601977230,1.47334883,18875.0,18874.0,0.01059939]
[1673601977763,1.95112116,18875.0,18874.0,0.01059939]
[1673601978018,1.53530846,18875.0,18874.0,0.01059939]
[1673601978263,1.8793251,18875.0,18874.0,0.01559939]
[1673601978516,1.48277861,18875.0,18874.0,0.01559939]
[1673601979042,1.72053914,18875.0,18874.0,0.01559939]
[1673601979274,2.21906485,18875.0,18874.0,0.01559939]
[1673601979516,2.20056485,18875.0,18874.0,0.01059939]
[1673601979776,1.98354821,18875.0,18874.0,0.01559939]
[1673601980041,2.8265776,18875.0,18874.0,0.01559939]
[1673601980286,0.3183,18874.0,18873.0,0.00348601]
[1673601980541,1.32372962,18874.0,18873.0,0.00348601]
[1673601980792,1.62372962,18874.0,18873.0,0.00348601]
[1673601981041,1.62362958,18874.0,18873.0,0.00348601]
[1673601982298,1.3860314,18874.0,18873.0,0.00348601]
[1673601982789,1.3860314,18874.0,18873.0,0.00848601]
[1673601982790,1.4160314,18874.0,18873.0,0.00848601]
[1673601983049,1.91856934,18874.0,18873.0,0.00848601]
[1673601983562,2.23116608,18874.0,18873.0,0.00848601]
[1673601983847,2.62864664,18874.0,18873.0,0.00848601]
[1673601984062,2.07352264,18874.0,18873.0,0.00848601]
[1673601984311,2.07482306,18874.0,18873.0,0.00848601]
[1673601985311,2.07481526,18874.0,18873.0,0.00848601]
[1673601985806,2.02563063,18874.0,18873.0,0.00848601]
[1673601986309,0.19151399,18873.0,18872.0,0.00374304]
[1673601986574,2.06044683,18873.0,18872.0,0.00374304]
[1673601986825,1.25123413,18873.0,18872.0,0.00374304]
[1673601987076,0.09151399,18873.0,18872.0,0.00374304]
[1673601987836,0.09851399,18873.0,18872.0,0.03774304]
[1673601988870,0.09851399,18873.0,18872.0,0.71694902]
[1673601989120,0.09851399,18873.0,18872.0,1.04666002]
[1673601989885,0.09851399,18873.0,18872.0,0.36745404]
[1673601990178,1e-08,18873.0,18872.0,0.92916107]
[1673601990638,1e-08,18873.0,18872.0,0.55425404]
[1673601990880,1e-08,18873.0,18872.0,1.05205299]
[1673601991875,1e-08,18873.0,18872.0,0.55425404]
[1673601992118,1e-08,18873.0,18872.0,1.08104474]
[1673601992374,0.00130042,18874.0,18873.0,0.329711]
[1673601992627,0.00130042,18874.0,18873.0,0.422311]
[1673601992876,0.00130042,18874.0,18873.0,0.522311]
[1673601993619,0.01030042,18874.0,18873.0,0.607311]
[1673601997346,0.01030042,18874.0,18873.0,0.76590625]
[1673601999813,0.01030042,18874.0,18873.0,0.607311]
[1673602001840,0.01030042,18874.0,18873.0,1.0362676]
[1673602004561,0.01030129,18874.0,18873.0,1.0362676]
[1673602006820,0.01030129,18874.0,18873.0,0.9362676]
[1673602007838,0.01030129,18874.0,18873.0,0.414711]
[1673602008085,0.57342416,18874.0,18873.0,0.085]
[1673602009869,0.57342416,18874.0,18873.0,0.507511]
[1673602009870,0.01030129,18874.0,18873.0,0.507511]
[1673602010377,0.01030129,18874.0,18873.0,0.66610625]
[1673602010612,0.01030129,18874.0,18873.0,1.78633826]
[1673602010858,0.82600259,18880.0,18874.0,0.12060257]
[1673602010859,0.01245091,18880.0,18874.0,0.12060257]
[1673602011097,0.58092923,18880.0,18875.0,0.329711]
[1673602011354,0.58092923,18880.0,18876.0,0.329711]
[1673602011586,0.58092923,18880.0,18878.0,0.329711]
[1673602011849,0.58092923,18880.0,18879.0,0.329711]
[1673602012094,0.01245091,18880.0,18877.0,0.1]
[1673602012333,0.01245091,18880.0,18877.0,0.76869525]
[1673602012571,0.01245091,18880.0,18878.0,0.56266055]
[1673602013070,0.02045091,18880.0,18879.0,0.093]
[1673602013330,0.01245091,18880.0,18878.0,0.56266055]
[1673602013588,0.02045091,18880.0,18878.0,0.56266055]
[1673602013830,0.01545091,18880.0,18878.0,0.56266055]
[1673602014580,0.00745091,18880.0,18878.0,0.56266055]
[1673602014826,0.01545091,18880.0,18879.0,0.093]
[1673602015085,0.00745091,18880.0,18878.0,0.56266055]
[1673602015373,0.01545091,18880.0,18878.0,0.65566055]
[1673602016868,0.5761042,18880.0,18878.0,0.65566055]
[1673602017618,0.62070262,18879.0,18878.0,0.093]
[1673602018597,0.62070262,18879.0,18877.0,0.61001831]
[1673602018841,0.62870262,18879.0,18878.0,0.093]
[1673602020396,0.62070262,18879.0,18877.0,0.61001831]
[1673602020636,0.83900756,18879.0,18877.0,0.093]
[1673602020885,0.1,18878.0,18876.0,0.58040412]
[1673602021608,0.1,18878.0,18877.0,0.093]
[1673602021885,0.1,18878.0,18876.0,0.58040412]
[1673602022128,0.108,18878.0,18876.0,0.67340412]
[1673602023101,0.80871485,18878.0,18876.0,0.67340412]
[1673602024813,0.00129993,18877.0,18876.0,0.67405473]
[1673602025591,0.00129993,18877.0,18876.0,1.00311512]
[1673602026561,0.00129993,18877.0,18876.0,0.91011512]
[1673602026821,0.00929993,18877.0,18876.0,1.00311512]
[1673602027556,0.51105093,18877.0,18876.0,0.093]
[1673602027833,1.08391399,18877.0,18876.0,0.093]
[1673602028071,1.62124624,18877.0,18876.0,0.093]
[1673602028325,1.77983155,18877.0,18876.0,0.093]
[1673602028810,1.06517987,18877.0,18876.0,0.093]
[1673602029073,1.36517987,18877.0,18876.0,0.093]
[1673602029599,1.06517987,18877.0,18876.0,0.093]
[1673602029875,1.15867987,18877.0,18876.0,0.093]
[1673602030113,2.03254579,18877.0,18876.0,0.093]
[1673602030650,1.61789411,18877.0,18876.0,0.093]
[1673602030892,2.03254579,18877.0,18876.0,0.093]
[1673602032593,1.61789411,18877.0,18876.0,0.093]
[1673602032857,1.71234635,18877.0,18875.0,0.0009536]
[1673602033124,1.73700198,18876.0,18874.0,0.02060257]
[1673602033366,0.55516582,18875.0,18874.0,0.02060257]
[1673602033654,0.82159822,18875.0,18874.0,0.02060257]
[1673602034379,0.15861567,18875.0,18874.0,0.02060257]
[1673602034622,0.55516582,18876.0,18875.0,0.58228817]
[1673602034623,0.17461567,18876.0,18875.0,0.58228817]
[1673602035594,0.15861567,18876.0,18875.0,0.58228817]
[1673602036126,0.15861567,18876.0,18874.0,0.02060257]
[1673602036351,0.16861567,18876.0,18874.0,0.66035182]
[1673602036643,0.15861567,18876.0,18874.0,0.66100251]
[1673602036884,0.15861567,18876.0,18874.0,0.66035182]
[1673602037367,0.17461567,18876.0,18874.0,0.66135182]
[1673602038346,1.09549873,18877.0,18875.0,0.50547157]
[1673602038594,0.00129993,18877.0,18876.0,0.329711]
[1673602039133,0.00129993,18877.0,18875.0,0.59907157]
[1673602039387,0.00129993,18877.0,18876.0,0.429711]
[1673602039637,0.02629993,18877.0,18876.0,0.429711]
[1673602039909,0.00129993,18877.0,18876.0,0.429711]
[1673602040143,0.01129993,18877.0,18876.0,0.429711]
[1673602040391,0.00129993,18877.0,18876.0,0.429711]
[1673602041375,0.02629993,18877.0,18876.0,1.1368437]
[1673602041602,0.00129993,18877.0,18876.0,1.1368437]
[1673602041853,0.01629993,18877.0,18876.0,1.1378437]
[1673602043825,0.00745091,18880.0,18877.0,0.1]
[1673602044071,0.00745091,18880.0,18878.0,0.329711]
[1673602044313,0.77382906,18880.0,18878.0,0.329711]
[1673602044551,0.77382906,18880.0,18877.0,0.59348061]
[1673602045056,0.0012968,18879.0,18877.0,0.59348061]
[1673602045340,0.0012968,18879.0,18877.0,0.60748061]
[1673602046072,0.0012968,18879.0,18877.0,0.59348061]
[1673602046342,0.0172968,18879.0,18877.0,0.60748061]
[1673602049065,0.67955649,18879.0,18877.0,0.60748061]
[1673602049322,0.65349392,18878.0,18877.0,0.60748061]
[1673602050052,0.65349392,18878.0,18874.0,0.3727072]
[1673602050288,1.02241453,18878.0,18875.0,0.69546363]
[1673602050556,0.1,18877.0,18875.0,0.69546363]
[1673602051584,0.27261567,18877.0,18875.0,0.70946363]
[1673602051837,0.27261567,18877.0,18875.0,0.014]
[1673602052581,0.52971726,18876.0,18875.0,0.014]
[1673602053065,0.27261567,18877.0,18875.0,0.014]
[1673602053066,0.114,18877.0,18875.0,0.014]
[1673602053335,0.114,18877.0,18876.0,0.5670345]
[1673602054345,0.1,18877.0,18876.0,0.5670345]
[1673602055065,0.115,18877.0,18876.0,0.014]
[1673602056036,0.015,18877.0,18876.0,0.014]
[1673602058513,0.015,18877.0,18876.0,1.04915607]
[1673602061299,0.015,18877.0,18876.0,1.04906517]
[1673602063501,0.015,18877.0,18876.0,1.04892232]
[1673602065226,0.01629735,18877.0,18876.0,1.04892232]
[1673602066043,0.01629735,18877.0,18876.0,0.58648188]
[1673602066297,0.01629735,18877.0,18876.0,0.9828297]
[1673602066551,0.01629735,18877.0,18876.0,1.9515835]
[1673602067828,0.01629735,18877.0,18876.0,1.634393]
[1673602068565,0.01629735,18877.0,18876.0,1.79285645]
[1673602069060,0.01629735,18877.0,18876.0,1.9515835]
[1673602070038,0.01629735,18877.0,18876.0,1.634393]
[1673602070270,0.01629735,18877.0,18876.0,1.9515835]
[1673602071010,0.01629735,18877.0,18876.0,2.10851235]
[1673602071260,0.01629735,18877.0,18876.0,1.71411155]
[1673602071465,0.01629735,18877.0,18876.0,2.10851235]
[1673602071748,0.01629735,18877.0,18876.0,1.95176315]
[1673602073315,0.01629735,18877.0,18876.0,1.95174407]
[1673602073814,0.01629735,18877.0,18876.0,1.71411155]
[1673602074067,1e-08,18877.0,18876.0,2.10851235]
[1673602074545,1e-08,18877.0,18876.0,1.71411155]
[1673602075499,1e-08,18877.0,18876.0,2.10851235]
[1673602076025,0.00745091,18880.0,18878.0,0.329711]
[1673602076276,0.00745091,18880.0,18879.0,0.1]
[1673602076519,0.00745091,18880.0,18879.0,0.429711]
[1673602076756,0.00745091,18880.0,18879.0,0.329711]
[1673602077242,0.01445091,18880.0,18879.0,0.333711]
[1673602077745,0.01445091,18880.0,18879.0,0.88853582]
[1673602079723,0.01445091,18880.0,18879.0,0.98213582]
[1673602081472,0.01445091,18880.0,18879.0,0.427311]
[1673602081712,0.01368891,18880.0,18879.0,0.98218993]
[1673602082209,0.01368891,18880.0,18879.0,2.22098951]
[1673602082462,0.01368891,18880.0,18879.0,1.90379901]
[1673602082714,0.00668891,18880.0,18879.0,1.50539821]
[1673602082976,0.02068891,18880.0,18879.0,1.72249821]
[1673602083511,0.00668891,18880.0,18879.0,1.69149821]
[1673602083740,0.00668891,18880.0,18879.0,2.08721329]
[1673602083983,0.00668891,18880.0,18879.0,2.11921329]
[1673602083984,0.01968891,18880.0,18879.0,2.11921329]
[1673602084698,0.01968891,18880.0,18879.0,2.43579324]
[1673602084946,0.01968891,18880.0,18879.0,2.02611329]
[1673602085198,0.01968891,18880.0,18879.0,2.34254698]
[1673602085760,0.02099189,18880.0,18879.0,2.34254698]
[1673602085993,0.02099189,18880.0,18879.0,2.34251112]
[1673602086254,0.02099189,18880.0,18879.0,2.02611329]
[1673602087274,0.01406891,18881.0,18880.0,0.14198377]
[1673602087516,0.01406891,18881.0,18880.0,2.29444259]
[1673602088500,0.01406891,18881.0,18880.0,2.25245882]
[1673602088747,0.02606891,18881.0,18880.0,2.30745882]
[1673602089502,0.02606891,18881.0,18880.0,1.99119561]
[1673602089743,0.02606891,18881.0,18880.0,2.14926048]
[1673602090491,0.02606891,18881.0,18880.0,1.99119561]
[1673602090731,0.02606891,18881.0,18880.0,2.14925243]
[1673602090979,0.02606891,18881.0,18880.0,1.99119561]
[1673602091467,0.02606891,18881.0,18880.0,2.4659765]
[1673602091981,0.02606891,18881.0,18880.0,2.9922092]
[1673602092234,0.02606891,18881.0,18880.0,2.99203762]
[1673602092482,0.02606891,18881.0,18880.0,2.67594599]
[1673602092728,0.02606891,18881.0,18880.0,2.28023091]
[1673602092976,0.02606891,18881.0,18880.0,2.69374219]
[1673602093223,0.02606891,18881.0,18880.0,2.67520166]
[1673602093467,0.02606891,18881.0,18880.0,2.67520187]
[1673602093716,0.02606891,18881.0,18880.0,3.08871315]
[1673602093962,0.02606891,18881.0,18880.0,2.67526684]
[1673602094470,0.02606891,18881.0,18880.0,2.28023091]
[1673602095204,0.02606891,18881.0,18880.0,2.67526588]
[1673602095975,0.0136791,18886.0,18884.0,0.13043694]
[1673602096232,0.0136791,18886.0,18884.0,1.0578865]
[1673602097482,0.02196275,18885.0,18884.0,1.11253684]
[1673602098491,0.02196275,18885.0,18884.0,1.1118865]
[1673602098978,0.23226769,18885.0,18884.0,0.51414794]
[1673602099221,0.86889923,18885.0,18884.0,0.18443694]
[1673602099472,0.65859429,18885.0,18884.0,0.18443694]
[1673602100198,0.65859429,18885.0,18884.0,0.51414794]
[1673602100450,0.65859429,18885.0,18884.0,0.18443694]
[1673602101976,0.75129429,18885.0,18884.0,0.18443694]
[1673602102229,0.85129429,18885.0,18884.0,0.18443694]
[1673602104781,0.11466275,18885.0,18884.0,0.84789375]
[1673602105050,0.11466275,18885.0,18884.0,1.17760475]
[1673602105860,0.02196275,18885.0,18884.0,1.17760475]
[1673602106573,1e-08,18885.0,18884.0,1.17760475]
[1673602107099,0.0013039,18885.0,18884.0,1.17760475]
[1673602108086,0.00107843,18885.0,18884.0,0.51414794]
[1673602109365,0.00107843,18885.0,18884.0,1.04812294]
[1673602117065,0.00107843,18885.0,18884.0,1.20612852]
[1673602119757,0.00107843,18885.0,18884.0,2.54173574]
[1673602120007,0.00107843,18885.0,18884.0,2.22572458]
[1673602123180,0.00107843,18885.0,18884.0,1.44375971]
[1673602123444,0.00107843,18885.0,18884.0,2.22573112]
[1673602123700,0.00107843,18885.0,18884.0,2.2257271]
[1673602127342,0.00130054,18885.0,18884.0,2.2257271]
[1673602127612,0.00130054,18885.0,18884.0,2.06710272]
[1673602127867,0.00130054,18885.0,18884.0,2.38311388]
[1673602128593,0.00130054,18885.0,18884.0,2.06710272]
[1673602129163,0.00130054,18885.0,18884.0,2.22571978]
[1673602130143,0.00130054,18885.0,18884.0,1.20674]
[1673602130398,0.21160548,18885.0,18884.0,0.18443694]
[1673602130658,0.55868025,18885.0,18884.0,0.18434343]
[1673602132178,0.65228025,18885.0,18884.0,0.18434343]
[1673602136454,0.65228025,18885.0,18884.0,0.18499377]
[1673602136963,0.65228025,18885.0,18884.0,0.18434343]
[1673602138168,0.81089592,18885.0,18884.0,0.18434343]
[1673602138439,0.91089592,18885.0,18884.0,0.18434343]
[1673602139199,0.81089592,18885.0,18884.0,0.18434343]
[1673602139962,0.65228025,18885.0,18884.0,0.18434343]
[1673602140494,0.81089592,18885.0,18884.0,0.18434343]
[1673602141979,0.65228025,18885.0,18884.0,0.18434343]
[1673602142487,0.81089592,18885.0,18884.0,0.18434343]
[1673602147140,0.71729592,18885.0,18884.0,0.18434343]
[1673602147819,0.7172935,18885.0,18884.0,0.18434343]
[1673602148339,0.95522171,18885.0,18884.0,0.18434343]
[1673602151093,0.7172935,18885.0,18884.0,0.18434343]
[1673602152117,0.9967935,18885.0,18884.0,0.18434343]
[1673602152649,0.28079812,18885.0,18884.0,0.88117344]
[1673602153405,0.28079812,18885.0,18884.0,0.18434343]
[1673602153658,1.00101065,18885.0,18884.0,0.184252]
[1673602155890,0.96171065,18885.0,18884.0,0.184252]
[1673602159146,0.86171065,18885.0,18884.0,0.184252]
[1673602159897,0.70309498,18885.0,18884.0,0.184252]
[1673602160399,0.86171065,18885.0,18884.0,0.184252]
[1673602160864,0.96171065,18885.0,18884.0,0.184252]
[1673602161380,1.36672442,18885.0,18884.0,0.184252]
[1673602161632,1.19963886,18885.0,18884.0,0.184252]
[1673602163367,1.3582608,18885.0,18884.0,0.184252]
[1673602163624,1.65718479,18885.0,18884.0,0.184252]
[1673602164134,1.33192205,18885.0,18884.0,0.184252]
[1673602164380,1.33192205,18885.0,18884.0,0.130252]
[1673602164381,1.85439774,18885.0,18884.0,0.130252]
[1673602164624,2.64698948,18885.0,18884.0,0.136252]
[1673602165112,1.97839774,18885.0,18884.0,0.136252]
[1673602165353,1.76442205,18885.0,18884.0,0.136252]
[1673602165843,1.24386985,18885.0,18884.0,0.130252]
[1673602166329,1.36886985,18885.0,18884.0,0.136252]
[1673602166902,1.90484032,18885.0,18884.0,0.136252]
[1673602167151,1.77984032,18885.0,18884.0,0.130252]
[1673602167399,1.90484032,18885.0,18884.0,0.136252]
[1673602167901,2.38069849,18885.0,18884.0,0.136252]
[1673602168901,1.9048427,18885.0,18884.0,0.136252]
[1673602169405,2.38069849,18885.0,18884.0,0.136252]
[1673602171513,2.38069849,18885.0,18878.0,0.00572439]
[1673602171514,0.3183,18883.0,18878.0,0.00572439]
[1673602171775,0.39647695,18880.0,18878.0,0.00572439]
[1673602172021,0.21030494,18879.0,18878.0,0.00572439]
[1673602172540,0.25859078,18879.0,18878.0,0.00572439]
[1673602172879,0.78881325,18879.0,18878.0,0.00572439]
[1673602173564,0.78881325,18879.0,18878.0,0.05672439]
[1673602173816,0.78881325,18879.0,18878.0,0.00572439]
[1673602174063,0.80281325,18879.0,18878.0,0.05272439]
[1673602174559,0.96140403,18879.0,18878.0,0.05272439]
[1673602174805,1.12257247,18879.0,18878.0,0.05272439]
[1673602175055,1.12257247,18879.0,18878.0,0.00572439]
[1673602175056,0.94998169,18879.0,18878.0,0.00572439]
[1673602175298,0.94998169,18879.0,18878.0,0.05172439]
[1673602175299,1.53092682,18879.0,18878.0,0.05172439]
[1673602175545,1.52092682,18879.0,18878.0,0.00572439]
[1673602175790,1.95592682,18879.0,18878.0,0.01072439]
[1673602176967,1.93763604,18879.0,18878.0,0.01072439]
[1673602177215,1.06411325,18879.0,18878.0,0.01078836]
[1673602177461,1.06411325,18879.0,18878.0,0.01072439]
[1673602177462,0.96411325,18879.0,18878.0,0.01072439]
[1673602179017,1.60250703,18879.0,18878.0,0.01072439]
[1673602179269,2.78287886,18879.0,18874.0,0.00590411]
[1673602179554,0.3183,18877.0,18874.0,0.00590411]
[1673602179799,0.51259308,18876.0,18874.0,0.00590411]
[1673602180029,0.1403,18875.0,18874.0,0.00590411]
[1673602180283,1.23646224,18875.0,18874.0,0.00590411]
[1673602180540,1.23646224,18875.0,18874.0,0.04790411]
[1673602180783,0.8240244,18875.0,18874.0,0.04790411]
[1673602181040,0.9240244,18875.0,18874.0,0.04790411]
[1673602181539,0.92395736,18875.0,18874.0,0.00590411]
[1673602181784,0.93395736,18875.0,18874.0,0.04790411]
[1673602182521,0.92395736,18875.0,18874.0,0.00590411]
[1673602182756,0.92395736,18875.0,18874.0,0.04790411]
[1673602182757,0.93395736,18875.0,18874.0,0.04790411]
[1673602183009,0.92395736,18875.0,18874.0,0.00590411]
[1673602183259,0.15023296,18875.0,18874.0,0.04790411]
[1673602183505,0.65262147,18876.0,18874.0,0.53736803]
[1673602183506,0.74803157,18876.0,18874.0,0.53736803]
[1673602183761,0.01,18875.0,18874.0,0.57936803]
[1673602184015,0.52772104,18879.0,18874.0,0.53736803]
[1673602184016,0.62597936,18879.0,18874.0,0.53736803]
[1673602184266,0.60106217,18878.0,18875.0,0.01]
[1673602184768,0.60106217,18878.0,18875.0,0.11]
[1673602185516,0.60106217,18878.0,18876.0,0.52507762]
[1673602186000,0.61506217,18878.0,18876.0,0.52507762]
[1673602186732,0.60106217,18878.0,18876.0,0.52507762]
[1673602186986,0.61106217,18878.0,18876.0,0.56707762]
[1673602187246,0.61106217,18878.0,18876.0,0.5662499]
[1673602187503,0.61106217,18878.0,18877.0,0.00121904]
[1673602188267,0.00129855,18878.0,18877.0,0.00121904]
[1673602188511,0.00529855,18878.0,18877.0,0.63900703]
[1673602189269,0.00129855,18878.0,18877.0,0.62400703]
[1673602189535,0.01129855,18878.0,18877.0,0.66600703]
[1673602190020,0.00129855,18878.0,18877.0,0.62400703]
[1673602190274,0.00529855,18878.0,18877.0,0.63900703]
[1673602191268,0.00529855,18878.0,18877.0,0.62400703]
[1673602191269,0.00129855,18878.0,18877.0,0.62400703]
[1673602191507,0.01129855,18878.0,18877.0,0.66600703]
[1673602192496,0.01129855,18878.0,18877.0,0.66478799]
[1673602193738,0.01129855,18878.0,18877.0,0.66484894]
[1673602194496,0.01129855,18878.0,18877.0,0.66478799]
[1673602195002,0.01129855,18878.0,18877.0,0.66484894]
[1673602197975,0.01129855,18878.0,18877.0,0.66478799]
[1673602198488,0.00949241,18878.0,18877.0,1.08809899]
[1673602201037,0.00949241,18878.0,18877.0,0.46542695]
[1673602201283,0.00949241,18878.0,18877.0,0.71625901]
[1673602201537,0.00949241,18878.0,18877.0,0.81625901]
[1673602201789,0.00949241,18878.0,18877.0,1.05326738]
[1673602202057,0.00949241,18878.0,18877.0,1.83545728]
[1673602202561,0.66731411,18883.0,18878.0,0.01898481]
[1673602202821,0.66731411,18883.0,18880.0,0.0936]
[1673602203100,0.66731411,18883.0,18881.0,0.32982692]
[1673602203341,0.66731411,18883.0,18881.0,0.00011592]
[1673602203342,0.1,18882.0,18881.0,0.00011592]
[1673602203824,0.1,18882.0,18881.0,0.53286915]
[1673602204099,0.66931411,18883.0,18881.0,0.53286915]
[1673602204635,0.66931411,18883.0,18881.0,0.53275323]
[1673602204865,0.78031411,18883.0,18881.0,0.53975323]
[1673602205121,0.66731411,18883.0,18881.0,0.53275323]
[1673602205372,0.67531411,18883.0,18881.0,0.60175323]
[1673602205629,0.66731411,18883.0,18881.0,0.53275323]
[1673602205900,0.67531411,18883.0,18881.0,0.60175323]
[1673602206441,0.008,18883.0,18881.0,0.60175323]
[1673602206727,0.008,18883.0,18882.0,0.61642807]
[1673602207249,0.008,18883.0,18881.0,0.069]
[1673602207505,0.61550292,18882.0,18881.0,0.069]
[1673602208028,0.61550292,18882.0,18878.0,0.51834801]
[1673602208329,0.61550292,18882.0,18878.0,0.01917481]
[1673602208330,0.21030494,18881.0,18878.0,0.01917481]
[1673602208613,0.1,18880.0,18878.0,0.01917481]
[1673602208863,0.40778735,18880.0,18878.0,0.01898481]
[1673602209115,0.5786948,18879.0,18878.0,0.08698481]
[1673602209371,0.6786948,18879.0,18878.0,0.01898481]
[1673602209615,0.6786948,18879.0,18878.0,0.02698481]
[1673602209863,0.6786948,18879.0,18878.0,0.01898481]
[1673602210356,0.6786948,18879.0,18877.0,0.31965087]
[1673602210910,0.6786948,18879.0,18878.0,0.007]
[1673602211108,0.6786948,18879.0,18877.0,0.31965087]
[1673602211363,0.7466948,18879.0,18878.0,0.007]
[1673602211624,0.6466948,18879.0,18877.0,0.31965087]
[1673602211887,0.07,18879.0,18877.0,0.32765087]
[1673602212190,0.07,18879.0,18878.0,0.40683773]
[1673602212411,0.07,18879.0,18878.0,0.50683773]
[1673602213665,0.64140631,18881.0,18878.0,0.50683773]
[1673602213905,0.64140631,18881.0,18879.0,0.329711]
[1673602214168,0.64140631,18881.0,18880.0,0.329711]
[1673602214411,0.64140631,18881.0,18879.0,0.69927214]
[1673602214913,0.65240631,18881.0,18879.0,0.76727214]
[1673602215173,0.64140631,18881.0,18880.0,0.329711]
[1673602215414,0.65240631,18881.0,18879.0,0.76727214]
[1673602215870,0.65240631,18881.0,18880.0,0.32988771]
[1673602216158,0.65240631,18881.0,18880.0,0.329711]
[1673602216411,0.65240631,18881.0,18879.0,0.76727214]
[1673602216935,0.64140631,18881.0,18880.0,0.329711]
[1673602217181,0.65040631,18881.0,18880.0,0.067]
[1673602217441,0.64140631,18881.0,18879.0,0.69927214]
[1673602217687,0.65240631,18881.0,18879.0,0.76727214]
[1673602217936,0.64140631,18881.0,18879.0,0.69927214]
[1673602218194,0.65040631,18881.0,18880.0,0.396711]
[1673602218449,0.64140631,18881.0,18880.0,0.329711]
[1673602218723,0.65240631,18881.0,18879.0,0.76727214]
[1673602218973,0.64140631,18881.0,18879.0,0.69927214]
[1673602219979,0.65040631,18881.0,18880.0,0.067]
[1673602220230,0.64140631,18881.0,18879.0,0.69927214]
[1673602220494,0.65240631,18881.0,18879.0,0.76727214]
[1673602221247,0.011,18881.0,18879.0,0.76727214]
[1673602221499,0.011,18881.0,18880.0,0.329711]
[1673602221749,0.011,18881.0,18880.0,0.429711]
[1673602222012,0.011,18881.0,18880.0,0.329711]
[1673602222765,0.65632869,18882.0,18880.0,0.329711]
[1673602223032,0.65632869,18882.0,18880.0,0.167]
[1673602223293,0.65632869,18882.0,18880.0,0.067]
[1673602223817,0.65632869,18882.0,18879.0,0.69927214]
[1673602224030,0.65632869,18882.0,18880.0,0.067]
[1673602224031,0.66532869,18882.0,18880.0,0.067]
[1673602224826,0.66532869,18882.0,18880.0,0.5846454]
[1673602225074,0.65632869,18882.0,18880.0,0.5846454]
[1673602225330,0.66732869,18882.0,18880.0,0.5846454]
[1673602226345,0.66732869,18882.0,18881.0,0.329711]
[1673602226590,0.66732869,18882.0,18881.0,0.0001767]
[1673602226835,0.66732869,18882.0,18880.0,0.5846454]
[1673602226836,0.65632869,18882.0,18880.0,0.5846454]
[1673602227375,0.66532869,18882.0,18880.0,0.6516454]
[1673602227628,0.65632869,18882.0,18881.0,0.329711]
[1673602227885,0.65832869,18882.0,18881.0,0.008]